[Event "Titled Tuesday Blitz August 16 Early 2022"]
[White "Zhigalko, Sergei"]
[Black "Beerdsen, Thomas"]
[WhiteFideId "13502956"]
[BlackFideId "1030108"]
[WhiteElo "2662"]
[BlackElo "2567"]
[Result "1-0"]
[Round "09"]
[TimeControl "180+1"]
[Date "2022.08.16"]
[WhiteClock "0:00:53"]
[BlackClock "0:01:36"]

1. e4 {[%clk 0:03:00]}  e5 {[%clk 0:02:56]} 2. Nf3 {[%clk 0:03:00]}  Nc6 {[%clk 0:02:57]} 3. Bc4 {[%clk 0:03:00]}  Bc5 {[%clk 0:02:55]} 4. b4 {[%clk 0:03:01]}  Bxb4 {[%clk 0:02:55]} 5. c3 {[%clk 0:03:01]}  Ba5 {[%clk 0:02:55]} 6. d4 {[%clk 0:03:01]}  b5 {[%clk 0:02:55]} 7. Bxb5 {[%clk 0:02:59]}  Nxd4 {[%clk 0:02:56]} 8. Nxd4 {[%clk 0:02:52]}  exd4 {[%clk 0:02:57]} 9. O-O {[%clk 0:02:46]}  c6 {[%clk 0:02:55]} 10. Bc4 {[%clk 0:02:39]}  Nf6 {[%clk 0:02:50]} 11. Ba3 {[%clk 0:02:27]}  d6 {[%clk 0:02:45]} 12. e5 {[%clk 0:02:00]}  dxe5 {[%clk 0:02:38]} 13. Qb3 {[%clk 0:01:22]}  Nd5 {[%clk 0:02:30]} 14. Nd2 {[%clk 0:01:21]}  Bc7 {[%clk 0:02:23]} 15. cxd4 {[%clk 0:01:15]}  exd4 {[%clk 0:02:00]} 16. Rfe1+ {[%clk 0:01:08]}  Be6 {[%clk 0:02:00]} 17. Qb7 {[%clk 0:01:09]}  Ne7 {[%clk 0:01:42]} 18. Bxe6 {[%clk 0:01:06]}  fxe6 {[%clk 0:01:41]} 19. Rxe6 {[%clk 0:01:07]}  O-O {[%clk 0:01:39]} 20. Rxe7 {[%clk 0:01:03]}  Rc8 {[%clk 0:01:39]} 21. Rae1 {[%clk 0:00:57]}  Qd5 {[%clk 0:01:35]} 22. Rxc7 {[%clk 0:00:53]}  Rce8 {[%clk 0:01:35]} 23. Rxg7+ {[%clk 0:00:53]}  Kh8 {[%clk 0:01:35]} 24. Rxh7+ {[%clk 0:00:53]}  Kg8 {[%clk 0:01:36]} 25. Qg7# {[%clk 0:00:53]} 1-0


[Site "https://www.chess.com"]

[Event "Titled Tuesday Blitz August 16 Early 2022"]
[White "Ajay Krishna, S"]
[Black "Garrido, Denis"]
[WhiteFideId "5096430"]
[BlackFideId "601217"]
[WhiteElo "2247"]
[BlackElo "2205"]
[Result "1-0"]
[Round "10"]
[TimeControl "180+2"]
[Date "2022.08.18"]
[WhiteClock "0:00:00"]
[BlackClock "0:00:00"]

1. Nf3 {[%clk 0:00:00]}  c5 {[%clk 0:00:00]} 2. e4 {[%clk 0:00:00]}  e6 {[%clk 0:00:00]} 3. d4 {[%clk 0:00:00]}  cxd4 {[%clk 0:00:00]} 4. Nxd4 {[%clk 0:00:00]}  Nf6 {[%clk 0:00:00]} 5. Nc3 {[%clk 0:00:00]}  d6 {[%clk 0:00:00]} 6. g3 {[%clk 0:00:00]}  Nc6 {[%clk 0:00:00]} 7. Bg2 {[%clk 0:00:00]}  Bd7 {[%clk 0:00:00]} 8. O-O {[%clk 0:00:00]}  a6 {[%clk 0:00:00]} 9. h3 {[%clk 0:00:00]}  Be7 {[%clk 0:00:00]} 10. Be3 {[%clk 0:00:00]}  O-O {[%clk 0:00:00]} 11. g4 {[%clk 0:00:00]}  Nxd4 {[%clk 0:00:00]} 12. Bxd4 {[%clk 0:00:00]}  Bc6 {[%clk 0:00:00]} 13. g5 {[%clk 0:00:00]}  Nd7 {[%clk 0:00:00]} 14. f4 {[%clk 0:00:00]}  b5 {[%clk 0:00:00]} 15. h4 {[%clk 0:00:00]}  b4 {[%clk 0:00:00]} 16. Ne2 {[%clk 0:00:00]}  e5 {[%clk 0:00:00]} 17. Be3 {[%clk 0:00:00]}  exf4 {[%clk 0:00:00]} 18. Nxf4 {[%clk 0:00:00]}  Ne5 {[%clk 0:00:00]} 19. Nd5 {[%clk 0:00:00]}  Re8 {[%clk 0:00:00]} 20. Bd4 {[%clk 0:00:00]}  Bxd5 {[%clk 0:00:00]} 21. exd5 {[%clk 0:00:00]}  Qd7 {[%clk 0:00:00]} 22. a3 {[%clk 0:00:00]}  a5 {[%clk 0:00:00]} 23. axb4 {[%clk 0:00:00]}  axb4 {[%clk 0:00:00]} 24. Rxa8 {[%clk 0:00:00]}  Rxa8 {[%clk 0:00:00]} 25. Bxe5 {[%clk 0:00:00]}  dxe5 {[%clk 0:00:00]} 26. d6 {[%clk 0:00:00]}  Qa7+ {[%clk 0:00:00]} 27. Kh1 {[%clk 0:00:00]}  Bd8 {[%clk 0:00:00]} 28. Bxa8 {[%clk 0:00:00]}  Qxa8+ {[%clk 0:00:00]} 29. Qf3 {[%clk 0:00:00]}  Qa7 {[%clk 0:00:00]} 30. d7 {[%clk 0:00:00]}  Qxd7 {[%clk 0:00:00]} 31. Rd1 {[%clk 0:00:00]}  Qe8 {[%clk 0:00:00]} 32. Qa8 {[%clk 0:00:00]} 1-0


[Site "https://www.chess.com"]

[Event "Titled Tuesday Blitz August 16 Early 2022"]
[White "Alexikov, Alexander"]
[Black "Lebedev, Artem S."]
[WhiteFideId "14103958"]
[BlackFideId "34272747"]
[WhiteElo "2253"]
[BlackElo "1699"]
[Result "1-0"]
[Round "10"]
[TimeControl "180+2"]
[Date "2022.08.18"]
[WhiteClock "0:00:00"]
[BlackClock "0:00:00"]

1. e4 {[%clk 0:00:00]}  e5 {[%clk 0:00:00]} 2. Nf3 {[%clk 0:00:00]}  Nc6 {[%clk 0:00:00]} 3. c3 {[%clk 0:00:00]}  Nf6 {[%clk 0:00:00]} 4. d4 {[%clk 0:00:00]}  exd4 {[%clk 0:00:00]} 5. e5 {[%clk 0:00:00]}  Nd5 {[%clk 0:00:00]} 6. Bb5 {[%clk 0:00:00]}  a6 {[%clk 0:00:00]} 7. Ba4 {[%clk 0:00:00]}  Bc5 {[%clk 0:00:00]} 8. O-O {[%clk 0:00:00]}  O-O {[%clk 0:00:00]} 9. cxd4 {[%clk 0:00:00]}  Bb6 {[%clk 0:00:00]} 10. Nc3 {[%clk 0:00:00]}  Nxc3 {[%clk 0:00:00]} 11. bxc3 {[%clk 0:00:00]}  d6 {[%clk 0:00:00]} 12. Ba3 {[%clk 0:00:00]}  Bg4 {[%clk 0:00:00]} 13. h3 {[%clk 0:00:00]}  Bh5 {[%clk 0:00:00]} 14. Re1 {[%clk 0:00:00]}  Re8 {[%clk 0:00:00]} 15. exd6 {[%clk 0:00:00]}  Rxe1+ {[%clk 0:00:00]} 16. Qxe1 {[%clk 0:00:00]}  Bxf3 {[%clk 0:00:00]} 17. gxf3 {[%clk 0:00:00]}  cxd6 {[%clk 0:00:00]} 18. Qe4 {[%clk 0:00:00]}  d5 {[%clk 0:00:00]} 19. Qg4 {[%clk 0:00:00]}  Qe8 {[%clk 0:00:00]} 20. Kf1 {[%clk 0:00:00]}  Ba5 {[%clk 0:00:00]} 21. Re1 {[%clk 0:00:00]}  Qc8 {[%clk 0:00:00]} 22. Re3 {[%clk 0:00:00]}  f5 {[%clk 0:00:00]} 23. Qf4 {[%clk 0:00:00]}  Bc7 {[%clk 0:00:00]} 24. Bd6 {[%clk 0:00:00]}  Ba5 {[%clk 0:00:00]} 25. Kg2 {[%clk 0:00:00]}  Qd7 {[%clk 0:00:00]} 26. Be5 {[%clk 0:00:00]}  b5 {[%clk 0:00:00]} 27. Bb3 {[%clk 0:00:00]}  b4 {[%clk 0:00:00]} 28. c4 {[%clk 0:00:00]}  dxc4 {[%clk 0:00:00]} 29. Bxc4+ {[%clk 0:00:00]}  Kh8 {[%clk 0:00:00]} 30. Qg5 {[%clk 0:00:00]}  Nxe5 {[%clk 0:00:00]} 31. dxe5 {[%clk 0:00:00]}  Bb6 {[%clk 0:00:00]} 32. e6 {[%clk 0:00:00]}  Qd4 {[%clk 0:00:00]} 33. e7 {[%clk 0:00:00]}  Qd7 {[%clk 0:00:00]} 34. Bb3 {[%clk 0:00:00]}  Rc8 {[%clk 0:00:00]} 35. Re5 {[%clk 0:00:00]}  Bd4 {[%clk 0:00:00]} 36. Rxf5 {[%clk 0:00:00]}  Bxf2 {[%clk 0:00:00]} 37. Rf8+ {[%clk 0:00:00]} 1-0


[Site "https://www.chess.com"]

[Event "Titled Tuesday Blitz August 16 Early 2022"]
[White "Andreikin, Dmitry"]
[Black "Pakleza, Zbigniew"]
[WhiteFideId "4158814"]
[BlackFideId "1119290"]
[WhiteElo "2736"]
[BlackElo "2411"]
[Result "1-0"]
[Round "10"]
[TimeControl "180+1"]
[Date "2022.08.16"]
[WhiteClock "0:00:41"]
[BlackClock "0:00:01"]

1. e4 {[%clk 0:03:00]}  d6 {[%clk 0:02:58]} 2. f4 {[%clk 0:02:57]}  Nf6 {[%clk 0:02:58]} 3. Nc3 {[%clk 0:02:57]}  d5 {[%clk 0:02:58]} 4. d3 {[%clk 0:02:52]}  dxe4 {[%clk 0:02:56]} 5. dxe4 {[%clk 0:02:51]}  Qxd1+ {[%clk 0:02:56]} 6. Kxd1 {[%clk 0:02:52]}  Nc6 {[%clk 0:02:48]} 7. Nf3 {[%clk 0:02:50]}  Bg4 {[%clk 0:02:46]} 8. Be3 {[%clk 0:02:45]}  e5 {[%clk 0:02:37]} 9. h3 {[%clk 0:02:39]}  O-O-O+ {[%clk 0:02:28]} 10. Bd3 {[%clk 0:02:36]}  Bxf3+ {[%clk 0:02:19]} 11. gxf3 {[%clk 0:02:36]}  exf4 {[%clk 0:01:54]} 12. Bxf4 {[%clk 0:02:36]}  Nh5 {[%clk 0:01:54]} 13. Be3 {[%clk 0:02:32]}  Ne5 {[%clk 0:01:43]} 14. Kc1 {[%clk 0:02:21]}  c6 {[%clk 0:00:58]} 15. Rd1 {[%clk 0:02:03]}  Bd6 {[%clk 0:00:33]} 16. Bf1 {[%clk 0:01:39]}  Ng6 {[%clk 0:00:20]} 17. Ne2 {[%clk 0:01:29]}  a6 {[%clk 0:00:17]} 18. c3 {[%clk 0:01:28]}  Nhf4 {[%clk 0:00:17]} 19. Kc2 {[%clk 0:01:26]}  Nxe2 {[%clk 0:00:17]} 20. Bxe2 {[%clk 0:01:26]}  Bf4 {[%clk 0:00:17]} 21. Bb6 {[%clk 0:01:21]}  Bc7 {[%clk 0:00:16]} 22. Bd4 {[%clk 0:01:21]}  Nf4 {[%clk 0:00:14]} 23. Bc4 {[%clk 0:01:18]}  f6 {[%clk 0:00:14]} 24. a4 {[%clk 0:01:17]}  Be5 {[%clk 0:00:12]} 25. Bb6 {[%clk 0:01:15]}  Bc7 {[%clk 0:00:12]} 26. Be3 {[%clk 0:01:14]}  Kb8 {[%clk 0:00:12]} 27. b4 {[%clk 0:01:13]}  Nxh3 {[%clk 0:00:11]} 28. b5 {[%clk 0:01:14]}  Rxd1 {[%clk 0:00:12]} 29. Rxd1 {[%clk 0:01:13]}  axb5 {[%clk 0:00:12]} 30. axb5 {[%clk 0:01:13]}  cxb5 {[%clk 0:00:12]} 31. Bxb5 {[%clk 0:01:06]}  Ng5 {[%clk 0:00:12]} 32. Be2 {[%clk 0:00:54]}  h5 {[%clk 0:00:13]} 33. Rb1 {[%clk 0:00:52]}  h4 {[%clk 0:00:11]} 34. Ba6 {[%clk 0:00:52]}  b6 {[%clk 0:00:12]} 35. Bc4 {[%clk 0:00:44]}  h3 {[%clk 0:00:08]} 36. Bd5 {[%clk 0:00:45]}  h2 {[%clk 0:00:07]} 37. Ra1 {[%clk 0:00:45]}  Bd8 {[%clk 0:00:02]} 38. Bf4+ {[%clk 0:00:41]}  Kc8 {[%clk 0:00:01]} 39. Bc6 {[%clk 0:00:41]} 1-0


[Site "https://www.chess.com"]

[Event "Titled Tuesday Blitz August 16 Early 2022"]
[White "Ardila, Oscar Humberto"]
[Black "Lehtosaari, Mauri"]
[WhiteFideId "4404742"]
[BlackFideId "501999"]
[WhiteElo "1939"]
[BlackElo "2200"]
[Result "1-0"]
[Round "10"]
[TimeControl "180+2"]
[Date "2022.08.18"]
[WhiteClock "0:00:00"]
[BlackClock "0:00:00"]

1. d4 {[%clk 0:00:00]}  d5 {[%clk 0:00:00]} 2. c4 {[%clk 0:00:00]}  c6 {[%clk 0:00:00]} 3. e3 {[%clk 0:00:00]}  Nf6 {[%clk 0:00:00]} 4. Nf3 {[%clk 0:00:00]}  Bg4 {[%clk 0:00:00]} 5. Nbd2 {[%clk 0:00:00]}  e6 {[%clk 0:00:00]} 6. Be2 {[%clk 0:00:00]}  Nbd7 {[%clk 0:00:00]} 7. O-O {[%clk 0:00:00]}  Bd6 {[%clk 0:00:00]} 8. h3 {[%clk 0:00:00]}  Bh5 {[%clk 0:00:00]} 9. b3 {[%clk 0:00:00]}  O-O {[%clk 0:00:00]} 10. Qc2 {[%clk 0:00:00]}  Rc8 {[%clk 0:00:00]} 11. a4 {[%clk 0:00:00]}  a6 {[%clk 0:00:00]} 12. Ba3 {[%clk 0:00:00]}  Bxa3 {[%clk 0:00:00]} 13. Rxa3 {[%clk 0:00:00]}  Qe7 {[%clk 0:00:00]} 14. Raa1 {[%clk 0:00:00]}  e5 {[%clk 0:00:00]} 15. Rfe1 {[%clk 0:00:00]}  Bg6 {[%clk 0:00:00]} 16. Qb2 {[%clk 0:00:00]}  Rfe8 {[%clk 0:00:00]} 17. dxe5 {[%clk 0:00:00]}  Nxe5 {[%clk 0:00:00]} 18. Nxe5 {[%clk 0:00:00]}  Qxe5 {[%clk 0:00:00]} 19. Qxe5 {[%clk 0:00:00]}  Rxe5 {[%clk 0:00:00]} 20. Nf3 {[%clk 0:00:00]}  Ree8 {[%clk 0:00:00]} 21. cxd5 {[%clk 0:00:00]}  Nxd5 {[%clk 0:00:00]} 22. Bc4 {[%clk 0:00:00]}  Rcd8 {[%clk 0:00:00]} 23. Rac1 {[%clk 0:00:00]}  Nb4 {[%clk 0:00:00]} 24. Red1 {[%clk 0:00:00]}  Kf8 {[%clk 0:00:00]} 25. Nh4 {[%clk 0:00:00]}  Bc2 {[%clk 0:00:00]} 26. Rxd8 {[%clk 0:00:00]}  Rxd8 {[%clk 0:00:00]} 27. Nf3 {[%clk 0:00:00]}  b5 {[%clk 0:00:00]} 28. axb5 {[%clk 0:00:00]}  cxb5 {[%clk 0:00:00]} 29. Bf1 {[%clk 0:00:00]}  Rd1 {[%clk 0:00:00]} 30. Rxd1 {[%clk 0:00:00]}  Bxd1 {[%clk 0:00:00]} 31. Nd4 {[%clk 0:00:00]}  Ke7 {[%clk 0:00:00]} 32. f4 {[%clk 0:00:00]}  g6 {[%clk 0:00:00]} 33. Kf2 {[%clk 0:00:00]}  Bc2 {[%clk 0:00:00]} 34. Ke1 {[%clk 0:00:00]}  Be4 {[%clk 0:00:00]} 35. Kd2 {[%clk 0:00:00]}  Kd6 {[%clk 0:00:00]} 36. g4 {[%clk 0:00:00]}  Nd5 {[%clk 0:00:00]} 37. Bd3 {[%clk 0:00:00]}  Bg2 {[%clk 0:00:00]} 38. h4 {[%clk 0:00:00]}  Kc5 {[%clk 0:00:00]} 39. Bc2 {[%clk 0:00:00]}  Bh3 {[%clk 0:00:00]} 40. g5 {[%clk 0:00:00]}  Bd7 {[%clk 0:00:00]} 41. f5 {[%clk 0:00:00]}  a5 {[%clk 0:00:00]} 42. f6 {[%clk 0:00:00]}  a4 {[%clk 0:00:00]} 43. bxa4 {[%clk 0:00:00]}  bxa4 {[%clk 0:00:00]} 44. h5 {[%clk 0:00:00]}  gxh5 {[%clk 0:00:00]} 45. Bxh7 {[%clk 0:00:00]}  h4 {[%clk 0:00:00]} 46. Be4 {[%clk 0:00:00]}  a3 {[%clk 0:00:00]} 47. g6 {[%clk 0:00:00]}  Nxf6 {[%clk 0:00:00]} 48. gxf7 {[%clk 0:00:00]}  Nxe4+ {[%clk 0:00:00]} 49. Kc2 {[%clk 0:00:00]}  Ba4+ {[%clk 0:00:00]} 50. Kb1 {[%clk 0:00:00]}  Nc3+ {[%clk 0:00:00]} 51. Ka1 {[%clk 0:00:00]}  Kc4 {[%clk 0:00:00]} 52. f8=Q {[%clk 0:00:00]}  a2 {[%clk 0:00:00]} 53. Qa3 {[%clk 0:00:00]}  Kd3 {[%clk 0:00:00]} 54. Kb2 {[%clk 0:00:00]}  a1=Q+ {[%clk 0:00:00]} 55. Qxa1 {[%clk 0:00:00]}  Nd1+ {[%clk 0:00:00]} 56. Ka3 {[%clk 0:00:00]}  Nxe3 {[%clk 0:00:00]} 57. Kxa4 {[%clk 0:00:00]} 1-0


[Site "https://www.chess.com"]

[Event "Titled Tuesday Blitz August 16 Early 2022"]
[White "Atanasov, Anthony"]
[Black "Begunov, Konstantin"]
[WhiteFideId "2623897"]
[BlackFideId "4118510"]
[WhiteElo "1928"]
[BlackElo "2262"]
[Result "0-1"]
[Round "10"]
[TimeControl "180+2"]
[Date "2022.08.18"]
[WhiteClock "0:00:00"]
[BlackClock "0:00:00"]

1. e4 {[%clk 0:00:00]}  c5 {[%clk 0:00:00]} 2. Nf3 {[%clk 0:00:00]}  d6 {[%clk 0:00:00]} 3. d4 {[%clk 0:00:00]}  cxd4 {[%clk 0:00:00]} 4. Nxd4 {[%clk 0:00:00]}  Nf6 {[%clk 0:00:00]} 5. Nc3 {[%clk 0:00:00]}  a6 {[%clk 0:00:00]} 6. Nb3 {[%clk 0:00:00]}  e6 {[%clk 0:00:00]} 7. g4 {[%clk 0:00:00]}  h6 {[%clk 0:00:00]} 8. h4 {[%clk 0:00:00]}  b5 {[%clk 0:00:00]} 9. Bg2 {[%clk 0:00:00]}  Bb7 {[%clk 0:00:00]} 10. g5 {[%clk 0:00:00]}  hxg5 {[%clk 0:00:00]} 11. hxg5 {[%clk 0:00:00]}  Rxh1+ {[%clk 0:00:00]} 12. Bxh1 {[%clk 0:00:00]}  b4 {[%clk 0:00:00]} 13. Nd5 {[%clk 0:00:00]}  Nxd5 {[%clk 0:00:00]} 14. exd5 {[%clk 0:00:00]}  g6 {[%clk 0:00:00]} 15. Qg4 {[%clk 0:00:00]}  e5 {[%clk 0:00:00]} 16. Qxb4 {[%clk 0:00:00]}  Bc8 {[%clk 0:00:00]} 17. Na5 {[%clk 0:00:00]}  Be7 {[%clk 0:00:00]} 18. Nc6 {[%clk 0:00:00]}  Nxc6 {[%clk 0:00:00]} 19. dxc6 {[%clk 0:00:00]}  Qc7 {[%clk 0:00:00]} 20. Bd5 {[%clk 0:00:00]}  Be6 {[%clk 0:00:00]} 21. Qc4 {[%clk 0:00:00]}  Bxd5 {[%clk 0:00:00]} 22. Qxd5 {[%clk 0:00:00]}  Rc8 {[%clk 0:00:00]} 23. c4 {[%clk 0:00:00]}  Qxc6 {[%clk 0:00:00]} 24. Qxc6+ {[%clk 0:00:00]}  Rxc6 {[%clk 0:00:00]} 25. b3 {[%clk 0:00:00]}  Kd7 {[%clk 0:00:00]} 26. Be3 {[%clk 0:00:00]}  Ke6 {[%clk 0:00:00]} 27. Rd1 {[%clk 0:00:00]}  Kf5 {[%clk 0:00:00]} 28. f4 {[%clk 0:00:00]}  exf4 {[%clk 0:00:00]} 29. Rd5+ {[%clk 0:00:00]}  Ke4 {[%clk 0:00:00]} 30. Bf2 {[%clk 0:00:00]}  Rc8 {[%clk 0:00:00]} 31. Rd4+ {[%clk 0:00:00]}  Kf5 {[%clk 0:00:00]} 32. Rd5+ {[%clk 0:00:00]}  Kg4 {[%clk 0:00:00]} 33. Ke2 {[%clk 0:00:00]}  Rh8 {[%clk 0:00:00]} 34. b4 {[%clk 0:00:00]}  Rh3 {[%clk 0:00:00]} 35. c5 {[%clk 0:00:00]}  dxc5 {[%clk 0:00:00]} 36. bxc5 {[%clk 0:00:00]}  Rc3 {[%clk 0:00:00]} 37. Kd2 {[%clk 0:00:00]}  Rc4 {[%clk 0:00:00]} 38. Kd3 {[%clk 0:00:00]}  Rc1 {[%clk 0:00:00]} 39. Rd7 {[%clk 0:00:00]}  Bxc5 {[%clk 0:00:00]} 40. Rc7 {[%clk 0:00:00]}  Be3 {[%clk 0:00:00]} 41. Rxc1 {[%clk 0:00:00]}  Bxc1 {[%clk 0:00:00]} 42. Ke4 {[%clk 0:00:00]}  Kxg5 {[%clk 0:00:00]} 43. Kf3 {[%clk 0:00:00]}  f5 {[%clk 0:00:00]} 44. Bd4 {[%clk 0:00:00]}  Be3 {[%clk 0:00:00]} 45. Be5 {[%clk 0:00:00]}  Kh5 {[%clk 0:00:00]} 46. a4 {[%clk 0:00:00]}  g5 {[%clk 0:00:00]} 47. Bd6 {[%clk 0:00:00]}  g4+ {[%clk 0:00:00]} 48. Kg2 {[%clk 0:00:00]}  f3+ {[%clk 0:00:00]} 49. Kg3 {[%clk 0:00:00]}  f4+ {[%clk 0:00:00]} 50. Kh2 {[%clk 0:00:00]}  g3+ {[%clk 0:00:00]} 51. Kh3 {[%clk 0:00:00]}  Kg5 {[%clk 0:00:00]} 52. a5 {[%clk 0:00:00]}  g2 {[%clk 0:00:00]} 53. Be7+ {[%clk 0:00:00]}  Kf5 {[%clk 0:00:00]} 54. Bd6 {[%clk 0:00:00]}  g1=Q {[%clk 0:00:00]} 55. Bxf4 {[%clk 0:00:00]}  Qg2+ {[%clk 0:00:00]} 56. Kh4 {[%clk 0:00:00]}  Qg4# {[%clk 0:00:00]} 0-1


[Site "https://www.chess.com"]

[Event "Titled Tuesday Blitz August 16 Early 2022"]
[White "Averjanov, Alexey"]
[Black "Sanchez, Robert"]
[WhiteFideId "14109867"]
[BlackFideId "2034360"]
[WhiteElo "2399"]
[BlackElo "1966"]
[Result "1-0"]
[Round "10"]
[TimeControl "180+2"]
[Date "2022.08.18"]
[WhiteClock "0:00:00"]
[BlackClock "0:00:00"]

1. d4 {[%clk 0:00:00]}  d5 {[%clk 0:00:00]} 2. c4 {[%clk 0:00:00]}  c6 {[%clk 0:00:00]} 3. e3 {[%clk 0:00:00]}  Nf6 {[%clk 0:00:00]} 4. Bd3 {[%clk 0:00:00]}  g6 {[%clk 0:00:00]} 5. Nc3 {[%clk 0:00:00]}  Bg7 {[%clk 0:00:00]} 6. Nge2 {[%clk 0:00:00]}  O-O {[%clk 0:00:00]} 7. O-O {[%clk 0:00:00]}  dxc4 {[%clk 0:00:00]} 8. Bxc4 {[%clk 0:00:00]}  Nbd7 {[%clk 0:00:00]} 9. Nf4 {[%clk 0:00:00]}  e5 {[%clk 0:00:00]} 10. dxe5 {[%clk 0:00:00]}  Nxe5 {[%clk 0:00:00]} 11. Be2 {[%clk 0:00:00]}  Qc7 {[%clk 0:00:00]} 12. b3 {[%clk 0:00:00]}  Rd8 {[%clk 0:00:00]} 13. Qc2 {[%clk 0:00:00]}  Bf5 {[%clk 0:00:00]} 14. e4 {[%clk 0:00:00]}  Bg4 {[%clk 0:00:00]} 15. f3 {[%clk 0:00:00]}  Bc8 {[%clk 0:00:00]} 16. Be3 {[%clk 0:00:00]}  b6 {[%clk 0:00:00]} 17. Rfd1 {[%clk 0:00:00]}  Bb7 {[%clk 0:00:00]} 18. Rxd8+ {[%clk 0:00:00]}  Rxd8 {[%clk 0:00:00]} 19. Rd1 {[%clk 0:00:00]}  Bh6 {[%clk 0:00:00]} 20. Rxd8+ {[%clk 0:00:00]}  Qxd8 {[%clk 0:00:00]} 21. Qd2 {[%clk 0:00:00]}  Qxd2 {[%clk 0:00:00]} 22. Bxd2 {[%clk 0:00:00]}  Nh5 {[%clk 0:00:00]} 23. g3 {[%clk 0:00:00]}  Nxf4 {[%clk 0:00:00]} 24. Bxf4 {[%clk 0:00:00]}  Bxf4 {[%clk 0:00:00]} 25. gxf4 {[%clk 0:00:00]}  Nd7 {[%clk 0:00:00]} 26. Kf2 {[%clk 0:00:00]}  Kf8 {[%clk 0:00:00]} 27. Ke3 {[%clk 0:00:00]}  Ke7 {[%clk 0:00:00]} 28. e5 {[%clk 0:00:00]}  Nc5 {[%clk 0:00:00]} 29. Ne4 {[%clk 0:00:00]}  Nxe4 {[%clk 0:00:00]} 30. fxe4 {[%clk 0:00:00]}  c5 {[%clk 0:00:00]} 31. Bc4 {[%clk 0:00:00]}  Bc8 {[%clk 0:00:00]} 32. Bd5 {[%clk 0:00:00]}  Be6 {[%clk 0:00:00]} 33. h4 {[%clk 0:00:00]}  h6 {[%clk 0:00:00]} 34. a3 {[%clk 0:00:00]}  Kd7 {[%clk 0:00:00]} 35. Kd3 {[%clk 0:00:00]}  b5 {[%clk 0:00:00]} 36. a4 {[%clk 0:00:00]}  a6 {[%clk 0:00:00]} 37. a5 {[%clk 0:00:00]}  Kc7 {[%clk 0:00:00]} 38. Ke3 {[%clk 0:00:00]}  Kd7 {[%clk 0:00:00]} 39. Kd3 {[%clk 0:00:00]}  Kc7 {[%clk 0:00:00]} 40. Kc3 {[%clk 0:00:00]}  Kd7 {[%clk 0:00:00]} 41. Bb7 {[%clk 0:00:00]}  b4+ {[%clk 0:00:00]} 42. Kb2 {[%clk 0:00:00]}  c4 {[%clk 0:00:00]} 43. bxc4 {[%clk 0:00:00]}  Bxc4 {[%clk 0:00:00]} 44. Bd5 {[%clk 0:00:00]}  Bxd5 {[%clk 0:00:00]} 45. exd5 {[%clk 0:00:00]}  f6 {[%clk 0:00:00]} 46. exf6 {[%clk 0:00:00]}  Ke8 {[%clk 0:00:00]} 47. Kb3 {[%clk 0:00:00]}  Kf7 {[%clk 0:00:00]} 48. Kxb4 {[%clk 0:00:00]}  Kxf6 {[%clk 0:00:00]} 49. Kc5 {[%clk 0:00:00]}  Ke7 {[%clk 0:00:00]} 50. Kc6 {[%clk 0:00:00]} 1-0


[Site "https://www.chess.com"]

[Event "Titled Tuesday Blitz August 16 Early 2022"]
[White "Babazada, Khazar"]
[Black "Santos Ruiz, Miguel"]
[WhiteFideId "13413554"]
[BlackFideId "22291482"]
[WhiteElo "2409"]
[BlackElo "2478"]
[Result "1-0"]
[Round "10"]
[TimeControl "180+1"]
[Date "2022.08.16"]
[WhiteClock "0:00:09"]
[BlackClock "0:00:12"]

1. Nf3 {[%clk 0:03:00]}  d5 {[%clk 0:02:58]} 2. g3 {[%clk 0:02:57]}  Nf6 {[%clk 0:02:58]} 3. Bg2 {[%clk 0:02:58]}  Nbd7 {[%clk 0:02:59]} 4. O-O {[%clk 0:02:59]}  c6 {[%clk 0:02:59]} 5. d3 {[%clk 0:02:59]}  e5 {[%clk 0:02:59]} 6. Nbd2 {[%clk 0:03:00]}  Bd6 {[%clk 0:02:58]} 7. e4 {[%clk 0:03:01]}  dxe4 {[%clk 0:02:59]} 8. dxe4 {[%clk 0:03:01]}  O-O {[%clk 0:02:59]} 9. Qe2 {[%clk 0:03:01]}  Re8 {[%clk 0:02:51]} 10. Nc4 {[%clk 0:03:01]}  Bf8 {[%clk 0:02:50]} 11. Rd1 {[%clk 0:03:00]}  Qc7 {[%clk 0:02:50]} 12. a4 {[%clk 0:02:59]}  b6 {[%clk 0:02:49]} 13. b3 {[%clk 0:02:48]}  Nc5 {[%clk 0:02:47]} 14. Bb2 {[%clk 0:02:33]}  Nfd7 {[%clk 0:02:26]} 15. Bh3 {[%clk 0:02:08]}  Ba6 {[%clk 0:02:08]} 16. Nh4 {[%clk 0:01:54]}  Nf6 {[%clk 0:02:04]} 17. Bg2 {[%clk 0:01:28]}  g6 {[%clk 0:01:59]} 18. b4 {[%clk 0:01:16]}  Ncd7 {[%clk 0:01:41]} 19. Bc3 {[%clk 0:00:57]}  Rad8 {[%clk 0:01:27]} 20. Bf1 {[%clk 0:00:57]}  Bb7 {[%clk 0:01:23]} 21. Bg2 {[%clk 0:00:54]}  Ba6 {[%clk 0:01:22]} 22. Bf1 {[%clk 0:00:55]}  Bb7 {[%clk 0:01:22]} 23. f3 {[%clk 0:00:36]}  Nh5 {[%clk 0:01:12]} 24. Ng2 {[%clk 0:00:30]}  Ng7 {[%clk 0:01:12]} 25. Nge3 {[%clk 0:00:30]}  h5 {[%clk 0:01:09]} 26. Bh3 {[%clk 0:00:30]}  Ne6 {[%clk 0:01:08]} 27. Bxe6 {[%clk 0:00:30]}  Rxe6 {[%clk 0:01:08]} 28. Rd2 {[%clk 0:00:30]}  Rde8 {[%clk 0:00:58]} 29. Rad1 {[%clk 0:00:28]}  Bc8 {[%clk 0:00:58]} 30. Rd3 {[%clk 0:00:22]}  Nf6 {[%clk 0:00:52]} 31. Qd2 {[%clk 0:00:14]}  h4 {[%clk 0:00:50]} 32. Kg2 {[%clk 0:00:13]}  Nh7 {[%clk 0:00:46]} 33. Ng4 {[%clk 0:00:13]}  Nf6 {[%clk 0:00:22]} 34. Ngxe5 {[%clk 0:00:08]}  Rxe5 {[%clk 0:00:20]} 35. Nxe5 {[%clk 0:00:09]}  Rxe5 {[%clk 0:00:20]} 36. Qf4 {[%clk 0:00:10]}  h3+ {[%clk 0:00:12]} 37. Kg1 {[%clk 0:00:09]} 1-0


[Site "https://www.chess.com"]